Workbook

Sheet Sheet1
B2: 相手先コード | C2: 0001 | D2: 0002 | E2: 0003
B3: 相手先名称 | C3: 相手先A | D3: 相手先B | E3: 相手先C
B4: 料金_1 | C4: 10000 | D4: 20000 | E4: 15000
B5: 料金_2 | C5: =C4*4 -> 40000 | D5: =D4*4 -> 80000 | E5: 60000
B6: 料金_3 | C6: =C4/2 -> 5000 | D6: =D4/2 -> 10000 | E6: 対象外
B8: 料金_4 | C8: 3000 | D8: 対象外 | E8: 0
B9: 数量 | C9: 3 | D9: 対象外 | E9: 0
B10: 計 | C10: =C8*C9 -> 9000 | D10: 対象外 | E10: =E8*E9 -> 0
B12: 料金_5 基本料 | C12: 5000 | D12: 5000 | E12: 3000
B13: 料金_5 単価 | C13: 500 | D13: 500 | E13: 500
B14: 数量 | C14: 6 | D14: 5 | E14: 0
B15: 計 | C15: =C12+C13*C14 -> 8000 | D15: =D12+D13*D14 -> 7500 | E15: 3000

Sheet Sheet2
B2: 相手先コード | C2: 0001 | D2: 0002 | E2: 0003
B3: 相手先名称 | C3: 相手先A | D3: 相手先B | E3: 相手先C
B4: 料金_1 | C4: =IF(ISNUMBER(Sheet1!C4),Sheet1!C4*1.1,Sheet1!C4&"") -> 11000 | D4: =IF(ISNUMBER(Sheet1!D4),Sheet1!D4*1.1,Sheet1!D4&"") -> 22000 | E4: =IF(ISNUMBER(Sheet1!E4),Sheet1!E4*1.1,Sheet1!E4&"") -> 16500
B5: 料金_2 | C5: =IF(ISNUMBER(Sheet1!C5),Sheet1!C5*1.1,Sheet1!C5&"") -> 44000 | D5: =IF(ISNUMBER(Sheet1!D5),Sheet1!D5*1.1,Sheet1!D5&"") -> 88000 | E5: =IF(ISNUMBER(Sheet1!E5),Sheet1!E5*1.1,Sheet1!E5&"") -> 66000
B6: 料金_3 | C6: =IF(ISNUMBER(Sheet1!C6),Sheet1!C6*1.1,Sheet1!C6&"") -> 5500 | D6: =IF(ISNUMBER(Sheet1!D6),Sheet1!D6*1.1,Sheet1!D6&"") -> 11000 | E6: =IF(ISNUMBER(Sheet1!E6),Sheet1!E6*1.1,Sheet1!E6&"") -> 対象外
C7: =IF(ISNUMBER(Sheet1!C7),Sheet1!C7*1.1,Sheet1!C7&"") ->  | D7: =IF(ISNUMBER(Sheet1!D7),Sheet1!D7*1.1,Sheet1!D7&"") ->  | E7: =IF(ISNUMBER(Sheet1!E7),Sheet1!E7*1.1,Sheet1!E7&"") -> 
B8: 料金_4 | C8: =IF(ISNUMBER(Sheet1!C8),Sheet1!C8*1.1,Sheet1!C8&"") -> 3300 | D8: =IF(ISNUMBER(Sheet1!D8),Sheet1!D8*1.1,Sheet1!D8&"") -> 対象外 | E8: =IF(ISNUMBER(Sheet1!E8),Sheet1!E8*1.1,Sheet1!E8&"") -> 0
B9: 数量 | C9: =IF(ISNUMBER(Sheet1!C9),Sheet1!C9*1.1,Sheet1!C9&"") -> 3 | D9: =IF(ISNUMBER(Sheet1!D9),Sheet1!D9*1.1,Sheet1!D9&"") -> 対象外 | E9: =IF(ISNUMBER(Sheet1!E9),Sheet1!E9*1.1,Sheet1!E9&"") -> 0
B10: 計 | C10: =IF(ISNUMBER(Sheet1!C10),Sheet1!C10*1.1,Sheet1!C10&"") -> 9900 | D10: =IF(ISNUMBER(Sheet1!D10),Sheet1!D10*1.1,Sheet1!D10&"") -> 対象外 | E10: =IF(ISNUMBER(Sheet1!E10),Sheet1!E10*1.1,Sheet1!E10&"") -> 0
C11: =IF(ISNUMBER(Sheet1!C11),Sheet1!C11*1.1,Sheet1!C11&"") ->  | D11: =IF(ISNUMBER(Sheet1!D11),Sheet1!D11*1.1,Sheet1!D11&"") ->  | E11: =IF(ISNUMBER(Sheet1!E11),Sheet1!E11*1.1,Sheet1!E11&"") -> 
B12: 料金_5 基本料 | C12: =IF(ISNUMBER(Sheet1!C12),Sheet1!C12*1.1,Sheet1!C12&"") -> 5500 | D12: =IF(ISNUMBER(Sheet1!D12),Sheet1!D12*1.1,Sheet1!D12&"") -> 5500 | E12: =IF(ISNUMBER(Sheet1!E12),Sheet1!E12*1.1,Sheet1!E12&"") -> 3300
B13: 料金_5 単価 | C13: =IF(ISNUMBER(Sheet1!C13),Sheet1!C13*1.1,Sheet1!C13&"") -> 550 | D13: =IF(ISNUMBER(Sheet1!D13),Sheet1!D13*1.1,Sheet1!D13&"") -> 550 | E13: =IF(ISNUMBER(Sheet1!E13),Sheet1!E13*1.1,Sheet1!E13&"") -> 550
B14: 数量 | C14: =IF(ISNUMBER(Sheet1!C14),Sheet1!C14*1.1,Sheet1!C14&"") -> 6 | D14: =IF(ISNUMBER(Sheet1!D14),Sheet1!D14*1.1,Sheet1!D14&"") -> 5 | E14: =IF(ISNUMBER(Sheet1!E14),Sheet1!E14*1.1,Sheet1!E14&"") -> 0
B15: 計 | C15: =IF(ISNUMBER(Sheet1!C15),Sheet1!C15*1.1,Sheet1!C15&"") -> 8800 | D15: =IF(ISNUMBER(Sheet1!D15),Sheet1!D15*1.1,Sheet1!D15&"") -> 8250 | E15: =IF(ISNUMBER(Sheet1!E15),Sheet1!E15*1.1,Sheet1!E15&"") -> 3300

Sheet Sheet3
B2: 相手先コード | C2: 0001 | D2: 0001 | E2: 0001
B3: 相手先名称 | C3: 相手先A | D3: 相手先B | E3: 相手先C
B4: 料金_1 | C4: =Sheet1!C4*1.1 -> 11000 | D4: =Sheet1!D4*1.1 -> 22000 | E4: =Sheet1!E4*1.1 -> 16500
B5: 料金_2 | C5: =Sheet1!C5*1.1 -> 44000 | D5: =Sheet1!D5*1.1 -> 88000 | E5: =Sheet1!E5*1.1 -> 66000
B6: 料金_3 | C6: =Sheet1!C6*1.1 -> 5500 | D6: =Sheet1!D6*1.1 -> 11000 | E6: =Sheet1!E6*1.1 -> 
C7: =Sheet1!C7*1.1 -> 0 | D7: =Sheet1!D7*1.1 -> 0 | E7: =Sheet1!E7*1.1 -> 0
B8: 料金_4 | C8: =Sheet1!C8*1.1 -> 3300 | D8: =Sheet1!D8*1.1 ->  | E8: =Sheet1!E8*1.1 -> 0
B9: 数量 | C9: =Sheet1!C9*1.1 -> 3.3 | D9: =Sheet1!D9*1.1 ->  | E9: =Sheet1!E9*1.1 -> 0
B10: 計 | C10: =Sheet1!C10*1.1 -> 9900 | D10: =Sheet1!D10*1.1 ->  | E10: =Sheet1!E10*1.1 -> 0
C11: =Sheet1!C11*1.1 -> 0 | D11: =Sheet1!D11*1.1 -> 0 | E11: =Sheet1!E11*1.1 -> 0
B12: 料金_5 基本料 | C12: =Sheet1!C12*1.1 -> 5500 | D12: =Sheet1!D12*1.1 -> 5500 | E12: =Sheet1!E12*1.1 -> 3300
B13: 料金_5 単価 | C13: =Sheet1!C13*1.1 -> 550 | D13: =Sheet1!D13*1.1 -> 550 | E13: =Sheet1!E13*1.1 -> 550
B14: 数量 | C14: =Sheet1!C14*1.1 -> 6.6 | D14: =Sheet1!D14*1.1 -> 5.5 | E14: =Sheet1!E14*1.1 -> 0
B15: 計 | C15: =Sheet1!C15*1.1 -> 8800 | D15: =Sheet1!D15*1.1 -> 8250 | E15: =Sheet1!E15*1.1 -> 3300
